bitfinex-derivatives/quotes_BTCF0:USTF0_20251217
["timestamp","ask_amount","ask_price","bid_price","bid_amount"]
[1765996962790,0.0115971,86256.0,86248.0,0.3608]
[1765996963187,0.0115967,86259.0,86248.0,0.3608]
[1765996963384,0.22944488,86260.0,86248.0,0.3608]
[1765996963583,0.3608,86262.0,86255.0,0.3608]
[1765996963785,0.0115965,86260.0,86255.0,0.3608]
[1765996963997,0.0115965,86260.0,86249.0,0.0001739]
[1765996964285,0.3608,86253.0,86249.0,3.9e-06]
[1765996964987,0.001,86260.0,86254.0,0.0115973]
[1765996965194,0.001,86260.0,86259.0,0.3608]
[1765996965380,0.0001739,86261.0,86259.0,0.3608]
[1765996966289,0.3608,86290.0,86259.0,0.3608]
[1765996966290,0.22944488,86280.0,86259.0,0.3608]
[1765996966586,0.0115942,86277.0,86267.0,0.3608]
[1765996966990,0.24103878,86280.0,86267.0,0.3608]
[1765996967389,0.22944488,86280.0,86267.0,0.3608]
[1765996967789,0.0115947,86274.0,86259.0,0.3608]
[1765996967994,0.3608,86275.0,86259.0,0.3608]
[1765996968186,0.0115954,86269.0,86259.0,0.3608]
[1765996968382,0.22944488,86270.0,86259.0,0.3608]
[1765996968584,0.3608,86261.0,86249.0,3.9e-06]
[1765996968780,0.3608,86250.0,86249.0,3.9e-06]
[1765996970990,0.3628,86250.0,86249.0,3.9e-06]
[1765996971192,0.0115989,86243.0,86225.0,0.0116012]
[1765996971395,0.3608,86234.0,86228.0,0.0116008]
[1765996971782,0.3608,86234.0,86218.0,1e-08]
[1765996971987,0.3608,86234.0,86225.0,0.0116011]
[1765996972190,0.3608,86234.0,86225.0,0.0001739]
[1765996972793,0.3608,86226.0,86225.0,0.0001739]
[1765996973186,0.3608,86226.0,86218.0,1e-08]
[1765996973391,0.3608,86219.0,86218.0,1e-08]
[1765996973784,0.3608,86219.0,86201.0,0.23676322]
[1765996973785,0.36091709,86219.0,86201.0,0.23676322]
[1765996973994,0.0116054,86195.0,86178.0,0.043979]
[1765996974298,0.22944488,86193.0,86143.0,0.0116122]
[1765996974498,0.0580423,86172.0,86118.0,0.09301657]
[1765996974692,0.01,86155.0,86099.0,0.04161821]
[1765996974885,0.011612,86145.0,86115.0,0.0116159]
[1765996975085,0.02031709,86144.0,86105.0,0.0116173]
[1765996975293,0.02031709,86144.0,86109.0,0.0116167]
[1765996975495,0.00017411,86136.0,86108.0,0.0116169]
[1765996975794,0.00017411,86136.0,86100.0,0.01836]
[1765996975983,0.00017411,86136.0,86100.0,0.01004]
[1765996976188,0.0580457,86167.0,86100.0,0.01004]
[1765996976189,0.22944488,86140.0,86105.0,0.0116173]
[1765996976395,0.22944488,86130.0,86105.0,0.0116173]
[1765996976694,0.22944488,86130.0,86100.0,0.23948488]
[1765996976695,0.22944488,86130.0,86100.0,0.021658]
[1765996976893,0.01,86155.0,86100.0,0.021658]
[1765996976894,0.011,86155.0,86108.0,0.0116169]
[1765996977094,0.011,86155.0,86124.0,0.00017411]
[1765996977095,0.00017411,86141.0,86124.0,0.00017411]
[1765996977596,0.33730251,86140.0,86111.0,0.0116165]
[1765996977793,0.33730251,86140.0,86110.0,0.01430958]
[1765996977998,0.18589411,86141.0,86114.0,0.0116161]
[1765996978191,0.18589411,86141.0,86116.0,0.0116159]
[1765996978390,0.00017411,86141.0,86120.0,0.33730251]
[1765996978585,0.00017411,86141.0,86124.0,0.0116147]
[1765996978785,1e-08,86141.0,86135.0,0.0116132]
[1765996978991,1e-07,86155.0,86136.0,0.2028]
[1765996979289,0.02130073,86214.0,86145.0,0.33730251]
[1765996979486,0.003,86212.0,86170.0,0.33730251]
[1765996979692,0.011604,86205.0,86179.0,0.33730251]
[1765996979908,0.00017411,86193.0,86179.0,0.33730251]
[1765996980087,0.00017411,86193.0,86175.0,0.00017411]
[1765996980286,0.3608,86185.0,86179.0,0.0116073]
[1765996980490,0.003,86212.0,86184.0,0.3608]
[1765996980491,0.3608,86200.0,86184.0,0.3608]
[1765996980807,0.3608,86190.0,86175.0,0.00017411]
[1765996981000,0.3608,86176.0,86175.0,0.00017411]
[1765996981302,0.3724049,86198.0,86175.0,4.11e-06]
[1765996981603,0.3608,86198.0,86183.0,0.3608]
[1765996982100,0.0116074,86180.0,86175.0,4.11e-06]
[1765996982303,0.3608,86176.0,86152.0,0.372411]
[1765996982493,0.3608,86168.0,86155.0,0.3608]
[1765996982684,0.3608,86168.0,86158.0,0.33730251]
[1765996982890,0.01,86189.0,86167.0,0.3608]
[1765996983091,0.0116066,86185.0,86170.0,0.33730251]
[1765996983399,0.0116084,86172.0,86157.0,0.3608]
[1765996983602,0.3608,86166.0,86153.0,0.3608]
[1765996983902,0.3608,86158.0,86143.0,0.3608]
[1765996984604,0.3608,86150.0,86143.0,0.3608]
[1765996984901,0.00011392,86149.0,86127.0,0.3724144]
[1765996985085,0.3608,86140.0,86130.0,0.34891641]
[1765996985290,0.3608,86140.0,86130.0,0.33730251]
[1765996985797,0.3608,86140.0,86111.0,0.3608]
[1765996985798,0.3608,86140.0,86120.0,0.33730251]
[1765996985996,0.3608,86128.0,86115.0,0.0116159]
[1765996986201,0.00017411,86139.0,86122.0,0.3608]
[1765996986996,0.3608,86131.0,86112.0,0.0116164]
[1765996987299,0.3608,86118.0,86110.0,0.00269298]
[1765996987488,0.3608,86111.0,86110.0,0.00269298]
[1765996987690,0.3608,86116.0,86110.0,0.00269298]
[1765996987895,0.00017411,86119.0,86110.0,0.00269298]
[1765996988097,0.00017411,86119.0,86110.0,0.36349298]
[1765996988401,0.3608,86134.0,86117.0,0.3608]
[1765996988605,0.3608,86134.0,86120.0,0.33730251]
[1765996988799,0.3608,86134.0,86117.0,0.3608]
[1765996988800,0.0116141,86130.0,86117.0,0.3608]
[1765996989008,0.3608,86126.0,86114.0,0.3608]
[1765996989504,0.00017411,86129.0,86114.0,0.3608]
[1765996989702,0.3608,86116.0,86112.0,0.002]
[1765996990096,0.3608,86116.0,86111.0,0.00017411]
[1765996990602,0.19413,86116.0,86111.0,0.00017411]
[1765996990904,0.002,86116.0,86111.0,0.00017411]
[1765996991099,0.3608,86127.0,86111.0,0.00017411]
[1765996991100,0.3608,86127.0,86112.0,0.0116164]
[1765996991308,0.00017411,86129.0,86124.0,0.3608]
[1765996991699,0.72177411,86129.0,86090.0,0.36090404]
[1765996991894,0.3608,86101.0,86098.0,2.95e-06]
[1765996992101,0.3608,86101.0,86090.0,6.99e-06]
[1765996993103,0.00010006,86100.0,86090.0,0.00100699]
[1765996993502,0.01171816,86100.0,86090.0,0.00100699]
[1765996993799,0.01171816,86100.0,86010.0,0.3608]
[1765996993800,0.01,86089.0,86010.0,0.3608]
[1765996993999,0.01,86089.0,86033.0,0.00736145]
[1765996994000,0.3608,86034.0,86033.0,0.00736145]
[1765996994202,0.3608,86040.0,86033.0,0.00736145]
[1765996994605,0.3608,86040.0,86033.0,5e-08]
[1765996994606,0.00012272,86039.0,86033.0,5e-08]
[1765996994993,0.00017435,86042.0,86033.0,5e-08]
[1765996994994,7e-08,86042.0,86033.0,5e-08]
[1765996995193,7e-08,86042.0,86018.0,0.00232511]
[1765996995397,0.11622973,86041.0,86018.0,0.00232511]
[1765996995609,0.3608,86035.0,86019.0,0.3608]
[1765996996002,0.001,86034.0,86019.0,0.3608]
[1765996996203,0.001,86034.0,86020.0,0.33730251]
[1765996996406,0.001,86034.0,86019.0,0.3608]
[1765996996712,0.3618,86035.0,86026.0,0.3608]
[1765996997008,0.3618,86035.0,86019.0,0.3608]
[1765996997201,0.3618,86035.0,86026.0,0.3608]
[1765996997202,0.3608,86035.0,86026.0,0.3608]
[1765996997509,0.001,86034.0,86019.0,0.3608]
[1765996997806,0.3608,86027.0,86018.0,0.00249946]
[1765996998013,0.0116281,86026.0,86018.0,6e-08]
[1765996998511,0.3608,86021.0,86018.0,6e-08]
[1765996998900,0.0116289,86020.0,86018.0,6e-08]
[1765996999414,0.3608,86021.0,86018.0,6e-08]
[1765996999800,0.0116289,86020.0,86018.0,6e-08]
[1765997000001,0.3608,86021.0,86018.0,6e-08]
[1765997000707,0.3638,86021.0,86018.0,6e-08]
[1765997001406,0.04607909,86059.0,86018.0,6e-08]
[1765997001407,0.0116266,86037.0,86019.0,0.3608]
[1765997001609,0.3608,86044.0,86034.0,0.3608]
[1765997001809,0.3608,86044.0,86026.0,0.3608]
[1765997002008,0.3608,86029.0,86018.0,6e-08]
[1765997002307,0.3608,86019.0,86018.0,6e-08]
[1765997002697,0.3608,86040.0,86018.0,6e-08]
[1765997002905,0.0116277,86029.0,86018.0,6e-08]
[1765997003112,0.3608,86022.0,86003.0,0.0116311]
[1765997003327,0.37243,86012.0,86000.0,0.01]
[1765997003500,0.3608,86012.0,86000.0,0.01]
[1765997003810,0.3608,86005.0,86000.0,0.01]
[1765997004013,0.0116317,86000.0,85994.0,0.3608]
[1765997005508,9.251e-05,85982.0,85976.0,0.00159224]
[1765997005710,9.251e-05,85982.0,85976.0,0.36239224]
[1765997006008,0.3708,85989.0,85976.0,0.36239224]
[1765997006211,0.3708,85989.0,85976.0,0.36212224]
[1765997006401,0.3608,86000.0,85976.0,0.36212224]
[1765997006402,0.3608,86003.0,85988.0,0.3608]
[1765997006712,1.45356,86028.0,85976.0,0.00132224]
[1765997006713,0.0116308,86007.0,85977.0,0.0116347]
[1765997006906,0.00017447,86001.0,85983.0,0.00017447]
[1765997007104,0.0116327,85992.0,85983.0,0.00017447]
[1765997007410,0.01031126,85986.0,85983.0,7e-08]
[1765997007708,0.0116341,85982.0,85967.0,7e-08]
[1765997008010,0.011635,85975.0,85967.0,7e-08]
[1765997008210,0.3608,85968.0,85951.0,0.3608]
[1765997008509,0.3608,85960.0,85951.0,0.3608]
[1765997008710,5.265e-05,85959.0,85942.0,0.3608]
[1765997008901,5.265e-05,85959.0,85949.0,0.69929666]
[1765997009101,0.00017447,85968.0,85956.0,0.3608]
[1765997009312,0.00017447,85968.0,85964.0,0.3608]
[1765997009708,0.3608,85965.0,85950.0,0.33849666]
[1765997009907,0.3608,85965.0,85949.0,0.3608]
[1765997010810,0.0116382,85951.0,85934.0,8.864e-05]
[1765997011111,0.3608,85939.0,85938.0,7e-08]
[1765997011312,0.3608,85939.0,85900.0,8.01]
[1765997011500,0.3608,85939.0,85910.0,0.33849666]
[1765997011501,0.00017458,85929.0,85910.0,0.33849666]
[1765997011811,0.01,85955.0,85929.0,0.0116411]
[1765997012011,0.01,85955.0,85929.0,0.33849666]
[1765997012314,0.01,85955.0,85920.0,0.33849666]
[1765997012315,8.864e-05,85954.0,85920.0,0.33849666]
[1765997012616,8.864e-05,85954.0,85930.0,0.33849666]
[1765997012910,0.0116385,85950.0,85933.0,0.00017458]
[1765997013106,0.3608,85949.0,85935.0,0.3608]
[1765997013703,0.0116385,85949.0,85946.0,0.20387]
[1765997013900,8.864e-05,85954.0,85930.0,0.00033352]
[1765997013901,0.33849666,85950.0,85930.0,0.00033352]
[1765997014103,0.33849666,85950.0,85930.0,2e-08]
[1765997014310,0.3608,85931.0,85930.0,2e-08]
[1765997014515,0.36088864,85931.0,85930.0,2e-08]
[1765997015009,0.36088864,85931.0,85909.0,0.3608]
[1765997015010,0.36088864,85931.0,85922.0,1e-07]
[1765997015214,0.00017458,85939.0,85922.0,1e-07]
[1765997015604,0.01181458,85939.0,85922.0,1e-07]
[1765997015810,0.00017458,85939.0,85922.0,1e-07]
[1765997016312,4.58e-06,85939.0,85930.0,0.3608]
[1765997016513,0.3608,85959.0,85937.0,0.3608]
[1765997016714,0.3628,85939.0,85922.0,1e-07]
[1765997017013,0.7216,85923.0,85922.0,1e-07]
[1765997017611,0.0116437,85911.0,85900.0,7.1219769]
[1765997017800,0.00017458,85931.0,85900.0,7.1219769]
[1765997017801,0.35946639,85901.0,85900.0,7.1219769]
[1765997018323,0.35946639,85901.0,85900.0,6.3736286]
[1765997018819,0.35946639,85901.0,85900.0,5.6150549]
[1765997019003,0.35946639,85901.0,85900.0,5.6160549]
[1765997019205,1.09942059,85901.0,85850.0,0.3608]
[1765997019513,0.3608,85890.0,85877.0,0.3608]
[1765997019720,0.3608,85890.0,85869.0,0.0116493]
[1765997019909,0.3608,85890.0,85874.0,0.3608]
[1765997020313,8.543e-05,85889.0,85868.0,0.0116494]
[1765997020508,0.3608,85882.0,85873.0,0.3608]
[1765997020711,8.543e-05,85889.0,85881.0,0.3608]
[1765997021009,8.543e-05,85889.0,85880.0,0.0116477]
[1765997021010,0.3608,85901.0,85888.0,0.2244]
[1765997021211,0.3608,85889.0,85856.0,0.3608]
[1765997021410,0.0116443,85906.0,85856.0,0.3608]
[1765997021411,0.3724492,85870.0,85856.0,0.3608]
[1765997021613,0.3608,85870.0,85856.0,0.3608]
[1765997022021,0.3608,85870.0,85857.0,0.00017469]
[1765997022909,0.3618,85870.0,85861.0,0.0153034]
[1765997023512,0.00017469,85874.0,85865.0,0.0116498]
[1765997023714,9e-08,85874.0,85870.0,0.0116492]
[1765997023914,0.3608,85893.0,85871.0,0.67752]
[1765997024125,0.3608,85893.0,85880.0,0.3608]
[1765997024714,0.0116463,85892.0,85880.0,0.3608]
[1765997024919,0.36097469,85893.0,85880.0,0.3608]
[1765997025123,0.011,85889.0,85880.0,0.3608]
[1765997025520,0.01,85889.0,85880.0,0.3608]
[1765997025720,0.011,85889.0,85880.0,0.3608]
[1765997025915,0.3608,85881.0,85876.0,0.74893469]
[1765997026120,0.3724477,85881.0,85876.0,9e-08]
[1765997026425,0.0116481,85878.0,85876.0,9e-08]
[1765997026619,0.3608,85881.0,85876.0,9e-08]
[1765997026821,0.3724477,85881.0,85876.0,4e-08]
[1765997027015,0.3608,85881.0,85876.0,4e-08]
[1765997027420,0.0116482,85877.0,85876.0,4e-08]
[1765997028121,0.3608,85881.0,85876.0,4e-08]
[1765997028321,0.3608,85881.0,85876.0,0.00100004]
[1765997028528,0.3618,85881.0,85876.0,0.00100004]
[1765997028923,0.3608,85881.0,85876.0,4e-08]
[1765997029116,0.3608,85881.0,85876.0,0.00100004]
[1765997029313,0.3608,85881.0,85876.0,4e-08]
[1765997029520,0.0116482,85878.0,85876.0,4e-08]
[1765997029815,0.3608,85881.0,85876.0,4e-08]
[1765997030212,0.0116478,85880.0,85876.0,4e-08]
[1765997030622,0.0116478,85880.0,85869.0,0.00017469]
[1765997031011,0.3618,85881.0,85869.0,0.00017469]
[1765997031225,0.001,85880.0,85876.0,0.001]
[1765997031425,0.001,85880.0,85869.0,0.00017469]
[1765997031626,0.3708,85889.0,85876.0,0.0116483]
[1765997032122,0.3824466,85889.0,85875.0,0.3608]
[1765997032427,0.3824466,85889.0,85869.0,0.00117469]
[1765997032428,0.0116478,85880.0,85869.0,0.00017469]
[1765997032626,0.3608,85870.0,85869.0,0.00017469]
[1765997033023,0.3608,85870.0,85861.0,0.0113034]
[1765997033334,0.3608,85870.0,85863.0,0.0116501]
[1765997033528,0.3608,85870.0,85862.0,0.74792]
[1765997034326,0.00017469,85875.0,85863.0,0.3608]
[1765997034525,0.00982319,85876.0,85863.0,0.3608]
[1765997034926,0.3608,85877.0,85863.0,0.3608]
[1765997035120,0.0116474,85884.0,85875.0,0.3608]
[1765997035325,0.01,85889.0,85883.0,0.3608]
[1765997035520,0.01,85889.0,85884.0,0.74764]
[1765997035726,0.00017469,85895.0,85884.0,0.74764]
[1765997036031,0.00017469,85895.0,85884.0,1.10844]
[1765997036623,0.0116463,85892.0,85884.0,1.10844]
[1765997037026,0.01182059,85895.0,85884.0,1.10844]
[1765997037232,0.0116459,85894.0,85884.0,1.10844]
[1765997037537,0.00017469,85895.0,85884.0,1.10844]
[1765997037738,0.0116465,85890.0,85884.0,0.3608]
[1765997037923,0.0116465,85890.0,85885.0,0.1002766]
[1765997038126,0.001,85892.0,85885.0,0.1002766]
[1765997038329,0.001,85892.0,85877.0,4.69e-06]
[1765997038330,0.3608,85886.0,85877.0,4.69e-06]
[1765997038530,0.3724481,85878.0,85876.0,0.38852]
[1765997038727,0.3724481,85878.0,85874.0,0.61745]
[1765997038927,0.3724481,85878.0,85871.0,0.74724]
[1765997038928,0.3608,85878.0,85871.0,0.74724]
[1765997039229,0.3608,85886.0,85871.0,0.758889]
[1765997039430,0.3608,85886.0,85871.0,0.74724]
[1765997039835,0.3608,85886.0,85874.0,0.0116485]
[1765997040138,1e-07,85892.0,85883.0,0.3608]
[1765997040325,0.3608,85906.0,85883.0,0.3608]
[1765997040326,0.3608,85906.0,85900.0,0.011645]
[1765997040633,0.3608,85906.0,85882.0,0.23129294]
[1765997040634,1e-07,85922.0,85919.0,0.0116424]
[1765997040840,1e-07,85922.0,85921.0,0.7216]
[1765997041024,0.3464745,85936.0,85921.0,1.46892]
[1765997041227,0.09436687,85954.0,85935.0,0.0116403]
[1765997041431,0.00017458,85953.0,85940.0,0.0116397]
[1765997041630,0.0116368,85962.0,85936.0,0.00017458]
[1765997041631,0.0116362,85966.0,85942.0,0.0116394]
[1765997041835,0.23129294,85970.0,85945.0,0.011639]
[1765997042136,0.23129294,85970.0,85936.0,0.00017458]
[1765997042137,0.0116359,85968.0,85936.0,0.00017458]
[1765997042330,0.0116401,85937.0,85933.0,8e-08]
[1765997042530,0.0116377,85955.0,85918.0,1.45624]
[1765997042531,0.011641,85931.0,85918.0,1.45624]
[1765997042737,0.23129294,85928.0,85900.0,0.01]
[1765997042932,0.23129294,85920.0,85900.0,0.01]
[1765997043134,0.0116429,85917.0,85900.0,0.24129294]
[1765997043328,4.58e-06,85917.0,85907.0,0.23129294]
[1765997043841,0.23129294,85940.0,85907.0,0.23129294]
[1765997044037,0.23129294,85940.0,85907.0,0.24293704]
[1765997044339,0.0116398,85940.0,85920.0,0.23129294]
[1765997044638,0.011639,85946.0,85922.0,0.0116421]
[1765997044834,0.01,85955.0,85900.0,0.01]
[1765997044835,0.01,85955.0,85936.0,0.23129294]
[1765997045047,0.01,85955.0,85925.0,0.00017458]
[1765997045048,0.0116368,85962.0,85945.0,0.23129294]
[1765997045238,0.0116369,85961.0,85946.0,0.11796]
[1765997045636,0.0116373,85958.0,85946.0,0.11796]
[1765997045935,0.3608,85964.0,85951.0,0.3608]
[1765997046126,0.3608,85974.0,85959.0,0.3608]
[1765997046327,0.3608,85982.0,85970.0,0.3608]
[1765997046534,0.23129294,86000.0,85980.0,0.3608]
[1765997046535,0.3608,86000.0,85980.0,0.3608]
[1765997046731,0.23129294,86010.0,85989.0,0.3608]
[1765997046935,0.23129294,86010.0,85980.0,0.24292714]
[1765997046936,0.3608,85999.0,85991.0,0.00017447]
[1765997047126,0.00017447,86008.0,85998.0,0.3608]
[1765997047328,0.01,86022.0,86007.0,0.3608]
[1765997047329,0.0216287,86022.0,86007.0,0.3608]
[1765997047533,0.01,86022.0,86012.0,0.3608]
[1765997047730,0.3608,86028.0,86012.0,0.3608]
[1765997047933,0.3608,86039.0,86022.0,0.3608]
[1765997048341,0.00017436,86036.0,86032.0,0.3608]
[1765997048741,4.36e-06,86036.0,86032.0,0.3608]
[1765997048936,0.3608,86051.0,86032.0,0.3608]
[1765997049131,0.36312403,86058.0,86041.0,0.3608]
[1765997049331,0.36312403,86058.0,86049.0,0.3608]
[1765997049537,0.09192475,86079.0,86057.0,0.3608]
[1765997049838,0.3608,86081.0,86066.0,0.3608]
[1765997050237,0.3724207,86081.0,86066.0,0.3608]
[1765997050637,0.3608,86067.0,86065.0,6e-08]
[1765997050845,0.3608,86081.0,86065.0,6e-08]
[1765997051042,0.3608,86081.0,86072.0,0.3608]
[1765997051241,0.3608,86091.0,86080.0,0.3608]
[1765997051538,0.011619,86093.0,86080.0,0.3608]
[1765997051741,0.36312295,86098.0,86065.0,6e-08]
[1765997051742,0.00232295,86098.0,86065.0,6e-08]
[1765997052138,0.011619,86094.0,86065.0,6e-08]
[1765997052337,0.00017394,86086.0,86065.0,6e-08]
[1765997052848,0.0116199,86087.0,86067.0,0.01]
[1765997053141,0.0116212,86078.0,86065.0,6e-08]
[1765997053445,0.01,86089.0,86065.0,6e-08]
[1765997053446,0.0116224,86068.0,86065.0,6e-08]
[1765997054346,0.0581013,86085.0,86000.0,0.01]
[1765997054347,0.0116276,86030.0,86000.0,0.01]
[1765997054649,0.0116261,86041.0,86010.0,0.41460267]
[1765997054849,0.0116261,86041.0,86011.0,0.0116301]
[1765997055145,0.0116254,86046.0,86015.0,0.0116294]
[1765997055346,0.0116256,86044.0,86017.0,0.00017439]
[1765997055542,8.422e-05,86045.0,86018.0,0.011629]
[1765997055738,8.422e-05,86045.0,86021.0,0.0116286]
[1765997055944,8.422e-05,86045.0,86022.0,0.27724]
[1765997056250,2e-08,86055.0,86044.0,0.7216]
[1765997056553,0.7216,86045.0,86033.0,0.01]
[1765997056748,0.01162422,86055.0,86033.0,0.01]
[1765997056951,2e-08,86055.0,86041.0,0.3608]
[1765997057246,2e-08,86055.0,86020.0,0.0116287]
[1765997057247,0.3608,86042.0,86021.0,0.0116287]
[1765997057455,4.986e-05,86041.0,86028.0,0.3608]
[1765997057646,0.3608,86034.0,86020.0,0.3724288]
[1765997057853,4.986e-05,86041.0,86020.0,0.3724288]
[1765997058051,4.986e-05,86041.0,86020.0,0.3608]
[1765997058248,0.3608,86036.0,86022.0,0.00017439]
[1765997058641,0.0116274,86031.0,86022.0,9e-08]
[1765997058841,0.3608,86029.0,86022.0,9e-08]
[1765997059053,0.3608,86038.0,86022.0,9e-08]
[1765997059244,0.0116266,86037.0,86022.0,9e-08]
[1765997059442,0.3608,86038.0,86022.0,9e-08]
[1765997060055,0.0116266,86037.0,86022.0,9e-08]
[1765997060357,0.3608,86038.0,86022.0,9e-08]
[1765997060658,0.001,86036.0,86022.0,9e-08]
[1765997060847,0.38242412,86055.0,86035.0,0.3608]
[1765997061154,0.0116246,86052.0,86042.0,0.3608]
[1765997061343,0.0116246,86052.0,86020.0,0.41460267]
[1765997061344,0.3608,86044.0,86021.0,0.3608]
[1765997061542,0.3608,86034.0,86021.0,0.3608]
[1765997062159,0.28449,86034.0,86021.0,0.3608]
[1765997062347,0.3608,86044.0,86029.0,0.3608]
[1765997062547,0.0116277,86029.0,86005.0,0.3608]
[1765997062757,0.7216,86030.0,86014.0,0.3608]
[1765997062758,0.3608,86030.0,86014.0,0.3608]
[1765997062948,0.3724276,86030.0,86014.0,0.3608]
[1765997063863,0.011628,86027.0,86014.0,0.3608]
[1765997064251,0.3608,86015.0,86013.0,9e-08]
[1765997064451,0.0116297,86014.0,86013.0,9e-08]
[1765997065158,0.3608,86015.0,86013.0,9e-08]
[1765997065667,0.3608,86023.0,86014.0,0.3608]
[1765997065864,0.00017439,86031.0,86025.0,0.0116281]
[1765997066158,0.00017439,86031.0,86022.0,0.3608]
[1765997066359,0.3608,86024.0,86013.0,9e-08]
[1765997066665,0.003,86014.0,86013.0,9e-08]
[1765997067057,0.3608,86016.0,86013.0,9e-08]
[1765997067962,0.003,86014.0,86013.0,9e-08]
[1765997068356,0.0116276,86030.0,86013.0,9e-08]
[1765997068556,0.00017439,86031.0,86013.0,9e-08]
[1765997068957,0.0116281,86026.0,86013.0,9e-08]
[1765997069268,0.0116277,86029.0,86013.0,9e-08]
[1765997069565,0.00017439,86031.0,86019.0,0.3608]
[1765997069765,0.0116275,86030.0,86019.0,0.3608]
[1765997069969,0.00017439,86031.0,86019.0,0.3608]
[1765997070154,0.00017439,86031.0,86015.0,0.0116294]
[1765997070753,0.00017439,86031.0,86019.0,0.3608]
[1765997070955,0.00017439,86031.0,86019.0,0.3618]
[1765997071262,0.0116275,86030.0,86019.0,0.3618]
[1765997071462,0.0116275,86030.0,86020.0,0.23053776]
[1765997071859,0.00117439,86031.0,86020.0,0.23053776]
[1765997072065,0.00117439,86031.0,86024.0,0.0116283]
[1765997072367,0.00117439,86031.0,86020.0,0.23053776]
[1765997072672,0.00117439,86031.0,86013.0,9e-08]
[1765997072673,0.3608,86028.0,86013.0,9e-08]
[1765997072863,0.3608,86014.0,86010.0,0.23053776]
[1765997073060,0.00117439,86031.0,86007.0,0.3608]
[1765997073270,0.00017439,86031.0,86019.0,0.001]
[1765997073463,0.3608,86028.0,86019.0,0.001]
[1765997073667,0.00017439,86031.0,86019.0,0.001]
[1765997073867,9e-08,86031.0,86025.0,0.3608]
[1765997074164,9e-08,86031.0,86026.0,0.47448]
[1765997074569,0.00100009,86031.0,86026.0,0.47448]
[1765997074967,0.3608,86044.0,86029.0,0.0116275]
[1765997075165,0.3608,86044.0,86031.0,0.0116273]
[1765997075474,0.0116262,86040.0,86026.0,0.47448]
[1765997075673,0.3608,86032.0,86000.0,0.01]
[1765997075865,0.3608,86023.0,86010.0,0.23053776]
[1765997076066,0.3724273,86032.0,86016.0,0.71484]
[1765997076260,0.0116276,86030.0,86016.0,0.71484]
[1765997076466,0.7332293,86017.0,86015.0,9e-08]
[1765997076674,0.7216,86017.0,86015.0,9e-08]
[1765997077267,0.7216,86017.0,86016.0,0.001]
[1765997077676,0.0116294,86016.0,86015.0,9e-08]
[1765997077864,0.7216,86017.0,86015.0,0.00100009]
[1765997078066,0.0116273,86032.0,86015.0,0.36180009]
[1765997078269,0.00017439,86033.0,86023.0,0.3608]
[1765997078674,0.01180159,86033.0,86023.0,0.3608]
[1765997078873,0.01180159,86033.0,86023.0,0.84352]
[1765997079079,0.3608,86027.0,86020.0,0.74556]
[1765997079276,0.3608,86027.0,86015.0,0.00100009]
[1765997079573,0.3608,86027.0,86016.0,0.39844]
[1765997080176,0.3608,86027.0,86020.0,0.001]
[1765997080677,0.3608,86027.0,86017.0,0.0116291]
[1765997081078,0.00017439,86033.0,86022.0,0.0116286]
[1765997081275,0.00017439,86033.0,86027.0,0.3608]
[1765997081470,0.00017439,86033.0,86028.0,0.0116278]
[1765997081676,0.00017439,86033.0,86027.0,0.3608]
[1765997082474,0.00017439,86033.0,86020.0,0.23057247]
[1765997082475,0.00017439,86033.0,86024.0,0.0116283]
[1765997082979,0.00017439,86033.0,86026.0,0.011628]
[1765997083279,9e-08,86033.0,86031.0,0.0116273]
[1765997083986,0.3608,86047.0,86033.0,0.011627]
[1765997084282,0.3608,86056.0,86038.0,0.3608]
[1765997084480,0.01017441,86055.0,86039.0,0.50204]
[1765997084781,0.3608,86065.0,86054.0,0.3724242]
[1765997085083,0.3724207,86081.0,86062.0,0.3608]
[1765997085281,0.3608,86081.0,86062.0,0.92064]
[1765997085484,0.3608,86081.0,86063.0,0.011623]
[1765997085683,0.0116199,86087.0,86073.0,0.3608]
[1765997085894,0.3708,86089.0,86073.0,0.3608]
[1765997086080,0.3608,86078.0,86067.0,0.39368]
[1765997086277,0.3608,86078.0,86046.0,0.3608]
[1765997086278,0.3608,86070.0,86040.0,0.23057247]
[1765997086481,0.3608,86054.0,86037.0,0.0116264]
[1765997086779,0.0116209,86080.0,86042.0,0.0116259]
[1765997086780,0.3608,86053.0,86042.0,0.0116259]
[1765997086980,0.3724225,86068.0,86052.0,0.3608]
[1765997087376,0.0116229,86065.0,86052.0,0.3608]
[1765997087572,0.00017426,86069.0,86052.0,0.3608]
[1765997088085,0.0116233,86061.0,86052.0,0.3608]
[1765997088872,0.3608,86053.0,86041.0,0.3608]
[1765997089183,0.011626,86041.0,86028.0,0.3608]
[1765997089385,0.3608,86034.0,86000.0,0.01]
[1765997089578,0.3608,86024.0,86011.0,0.0116301]
[1765997089973,0.3608,86024.0,86014.0,0.0116297]
[1765997090283,0.3608,86034.0,86016.0,0.3608]
[1765997090474,0.3724271,86034.0,86016.0,0.3608]
[1765997090674,0.3608,86024.0,86009.0,0.49449428]
[1765997090884,0.3608,86024.0,86010.0,0.0116302]
[1765997091674,0.3608,86024.0,86010.0,0.24220267]
[1765997091875,0.00017439,86026.0,86020.0,0.0116288]
[1765997092177,0.00017439,86026.0,86014.0,0.3608]
[1765997092379,0.00017439,86026.0,86011.0,0.01263]
[1765997092380,0.00017439,86026.0,86011.0,0.01163]
[1765997092581,0.00017439,86026.0,86010.0,0.23157247]
[1765997092985,0.00017439,86026.0,86011.0,0.01163]
[1765997093289,0.00117439,86026.0,86014.0,0.0116296]
[1765997093489,0.00117439,86026.0,86009.0,0.00017428]
[1765997093490,0.3608,86020.0,86009.0,0.00017428]
[1765997093690,0.372429,86020.0,86010.0,0.002]
[1765997093886,0.3608,86020.0,86010.0,0.002]
[1765997094985,0.3608,86020.0,86009.0,0.00017428]
[1765997094986,0.3724301,86012.0,86009.0,4.28e-06]
[1765997095483,0.011629,86019.0,86009.0,4.28e-06]
[1765997095891,0.0116294,86017.0,86010.0,0.001]
[1765997096286,0.0116294,86017.0,86009.0,4.28e-06]
[1765997096493,0.001,86012.0,86009.0,4.28e-06]
[1765997096786,0.3608,86010.0,85983.0,0.3608]